[Event "WYCC U16 Girls 2019"]
[Site "Mumbai"]
[Date "2019.10.05"]
[Round "5.10"]
[White "Poorna Sri M.K"]
[Black "Hajiyeva, Laman"]
[Result "*"]
[ECO "C13"]
[WhiteElo "1787"]
[BlackElo "2038"]
[Annotator "NA"]
[PlyCount "40"]
[EventDate "2019.10.02"]
[EventType "swiss"]
[EventCountry "IND"]
[SourceTitle "playchess.com"]
[Source "ChessBase"]
[SourceQuality "1"]
[TimeControl "5400+30"]

1. e4 e6 2. d4 d5 3. Nc3 Nf6 4. Bg5 Be7 5. e5 Nfd7 6. h4 h6 7. Bxe7 Qxe7 8. f4 a6 {C14: French: Classical System: 4 Bg5 Be7 main line} 9. Nf3 c5 10. Qd2 Nc6 11. Ne2 (11. Bd3 b6 12. Nd1 cxd4 13. Nf2 Nc5 14. Be2 Bd7 15. O-O-O Rc8 16. Kb1 O-O 17. g4 Rfd8 18. Nxd4 Nxd4 19. Qxd4 Bb5 20. Bd3 Bc4 21. Bxc4 {½-½ (21) Liang,A (2599)-Moradiabadi,E (2537) Greensboro 2019}) 11... b5 12. g4 Bb7 13. Ng3 f6 $146 ({Predecessor:} 13... cxd4 14. Nxd4 Nxd4 15. Qxd4 {½-½ (41) Hallenberg,S (2155)-Eloranta,K (2030) Finland 2008}) 14. O-O-O fxe5 15. dxe5 O-O-O 16. h5 Rhe8 17. g5 Nb6 18. gxh6 gxh6 19. f5 $15 Qg7 20. Qf4 Qf8 *

[Event "WYCC U16 Girls 2019"]
[Site "Mumbai"]
[Date "2019.10.05"]
[Round "5.11"]
[White "Jain, Nityata"]
[Black "Nanditha, V."]
[Result "1-0"]
[ECO "B15"]
[WhiteElo "2029"]
[BlackElo "1800"]
[Annotator "NA RC"]
[PlyCount "129"]
[EventDate "2019.10.02"]
[EventType "swiss"]
[EventCountry "IND"]
[SourceTitle "playchess.com"]
[Source "ChessBase"]
[SourceQuality "1"]
[TimeControl "5400+30"]

1. e4 c6 2. d4 d5 3. Nc3 dxe4 4. Nxe4 Nf6 5. Nxf6+ exf6 6. c3 Bd6 7. Bd3 O-O 8. Qc2 Re8+ {B15: Caro-Kann: 3 Nc3: 3...g6 and 3...dxe4 4 Nxe4 Nf6 5 Nxf6+ exf6} 9. Ne2 h5 10. Be3 h4 (10... Nd7 11. Ng3 Bf4 12. O-O-O Bxe3+ 13. fxe3 Rxe3 14. Rde1 Rxe1+ 15. Rxe1 Nf8 16. Nxh5 {½-½ (36) Mamedov,R (2650)-Cheparinov,I (2667) Hengshui 2019}) 11. O-O-O Be6 12. c4 Na6 $146 ({Predecessor:} 12... a5 13. Nc3 Na6 14. a3 Qb8 15. Qe2 f5 16. Qh5 {½-½ (36) Shevchenko,K (2549)-Gumularz,S (2441) Porto Carras 2018}) 13. a3 Rc8 14. Nc3 Nc7 15. Bf5 Qd7 16. Bxe6 Qxe6 17. c5 Bf8 18. Rhe1 Qd7 19. Qb3 Nd5 20. Nxd5 cxd5 21. Kb1 Rc6 22. Qc2 b6 23. b4 $11 b5 24. Kb2 g6 25. Qd3 Rce6 26. Qc3 a6 27. h3 R8e7 28. Bf4 Qe8 29. Rxe6 Rxe6 30. Rc1 Qc6 31. Re1 Bg7 32. Rxe6 fxe6 33. Bd6 Kf7 34. Qe3 Qe8 35. Qf4 g5 36. Qf3 Kg8 37. Kb3 Qg6 38. Kb2 Qe8 39. Kb3 Qg6 40. Qd1 Qe8 41. Qc2 Qc6 42. Qg6 Qa8 43. Be7 Kh8 44. Bxf6 Bxf6 45. Qxf6+ Kh7 46. Qxg5 a5 47. Qxh4+ Kg6 48. Qg3+ Kh6 49. Qe3+ Kg7 50. Qe5+ Kh7 51. Qc7+ Kg6 52. bxa5 b4 53. axb4 Qa6 54. Qg3+ Kf6 55. Qc3 Qc6 56. Qd3 e5 57. dxe5+ Kxe5 58. Qe3+ Kf5 59. g4+ Kg6 60. f4 d4 61. f5+ Kh7 62. Qe7+ Kh8 63. Qf8+ Kh7 64. Qf7+ Kh8 65. Qh5+ 1-0

[Event "WYCC U16 Girls 2019"]
[Site "Mumbai"]
[Date "2019.10.05"]
[Round "5.11"]
[White "Jain Nityata"]
[Black "Nanditha V"]
[Result "*"]
[ECO "B15"]
[WhiteElo "2029"]
[BlackElo "1800"]
[Annotator "NA"]
[PlyCount "51"]
[EventDate "2019.10.02"]
[EventType "swiss"]
[EventCountry "IND"]
[SourceTitle "playchess.com"]
[Source "ChessBase"]
[SourceQuality "1"]
[TimeControl "5400+30"]

1. e4 c6 2. d4 d5 3. Nc3 dxe4 4. Nxe4 Nf6 5. Nxf6+ exf6 6. c3 Bd6 7. Bd3 O-O 8. Qc2 Re8+ {B15: Caro-Kann: 3 Nc3: 3...g6 and 3...dxe4 4 Nxe4 Nf6 5 Nxf6+ exf6} 9. Ne2 h5 10. Be3 h4 (10... Nd7 11. Ng3 Bf4 12. O-O-O Bxe3+ 13. fxe3 Rxe3 14. Rde1 Rxe1+ 15. Rxe1 Nf8 16. Nxh5 {½-½ (36) Mamedov,R (2650)-Cheparinov,I (2667) Hengshui 2019}) 11. O-O-O Be6 12. c4 Na6 $146 ({Predecessor:} 12... a5 13. Nc3 Na6 14. a3 Qb8 15. Qe2 f5 16. Qh5 {½-½ (36) Shevchenko,K (2549)-Gumularz,S (2441) Porto Carras 2018}) 13. a3 Rc8 14. Nc3 Nc7 15. Bf5 Qd7 16. Bxe6 Qxe6 17. c5 Bf8 18. Rhe1 Qd7 19. Qb3 Nd5 20. Nxd5 cxd5 21. Kb1 Rc6 22. Qc2 b6 23. b4 $11 b5 24. Kb2 g6 25. Qd3 Rce6 26. Qc3 *

[Event "WYCC U16 Girls 2019"]
[Site "Mumbai"]
[Date "2019.10.05"]
[Round "5.12"]
[White "Dahampriya, H K T Dewnethmie"]
[Black "Golsta, Madara"]
[Result "1-0"]
[ECO "B77"]
[WhiteElo "1629"]
[BlackElo "1987"]
[Annotator "NA RC"]
[PlyCount "98"]
[EventDate "2019.10.02"]
[EventType "swiss"]
[EventCountry "IND"]
[SourceTitle "playchess.com"]
[Source "ChessBase"]
[SourceQuality "1"]
[TimeControl "5400+30"]

1. e4 {[%emt 0:00:00]} c5 {[%emt 0:00:00]} 2. Nf3 {[%emt 0:00:00]} d6 {[%emt 0:00:00]} 3. d4 {[%emt 0:00:00]} cxd4 {[%emt 0:00:05]} 4. Nxd4 {[%emt 0:00:00]} Nf6 {[%emt 0:00:15]} 5. Nc3 {[%emt 0:00:00]} g6 {[%emt 0:00:09]} 6. f3 {[%emt 0:00:03]} Bg7 {[%emt 0:00:36]} 7. Be3 {[%emt 0:00:09]} Nc6 8. Qd2 {[%emt 0:02:00]} O-O {[%emt 0:02:27]} 9. Bc4 {[%emt 0:01:51]} Bd7 {[%emt 0:01:12]} 10. Bb3 {[%emt 0:00:12]} Na5 {[%emt 0:01:37]} 11. Bh6 {[%emt 0:00:18] B77: Sicilian Dragon: Yugoslav Attack, 9 Bc4 sidelines} (11. h4 h5 12. Bh6 Nxb3 13. axb3 Bxh6 14. Qxh6 e5 15. Nde2 b5 16. g4 b4 17. Nd5 Nxd5 18. exd5 Qf6 19. gxh5 Qxf3 20. hxg6 Qxh1+ 21. Kd2 Qxd5+ 22. Ke3 Qc5+ 23. Kd2 Qd5+ 24. Ke3 Qc5+ 25. Kd2 Qd5+ {½-½ (25) Vachier Lagrave,M (2780)-Sebenik,M (2540) chess.com INT 2019}) 11... Bxh6 {[%emt 0:01:37]} 12. Qxh6 {[%emt 0:00:14]} e5 {[%emt 0:00:59]} 13. Nde2 {[%emt 0:02:18]} Nxb3 {[%emt 0:02:20]} 14. cxb3 {[%emt 0:02:05]} b5 {[%emt 0:11:50]} 15. b4 $146 {[%emt 0:07:12]} ({Predecessor:} 15. O-O-O b4 16. Nd5 Nxd5 17. Rxd5 Be6 18. Rd3 Rc8+ {1-0 (45) Wantiez,F (2265)-Russo,B (1980) Charleroi 2006}) 15... a5 {[%emt 0:01:01]} 16. bxa5 {[%emt 0:00:10]} b4 {[%emt 0:00:15]} 17. Nd1 {[%emt 0:00:32]} Qxa5 {[%emt 0:00:54]} 18. Qd2 {[%emt 0:06:51]} d5 {[%emt 0:03:12]} 19. Qg5 {[%emt 0:09:45]} Ra6 {[%emt 0:13:50]} 20. exd5 {[%emt 0:09:53]} e4 {[%emt 0:11:27]} 21. O-O {[%emt 0:18:34]} Bb5 {[%emt 0:05:58]} ({Much worse is} 21... Qxd5 $6 22. Qxd5 Nxd5 23. fxe4 $11) 22. Rf2 $17 {[%emt 0:03:39]} Bxe2 {[%emt 0:11:38]} 23. Rxe2 {[%emt 0:00:10]} exf3 {[%emt 0:00:13]} 24. Re5 {[%emt 0:03:45]} fxg2 {[%emt 0:06:34]} 25. Kxg2 {[%emt 0:00:15]} Rd6 {[%emt 0:00:30]} 26. Ne3 {[%emt 0:00:31]} Re8 {[%emt 0:07:17]} 27. Rf1 {[%emt 0:09:36]} Qd8 {[%emt 0:05:13]} 28. Rxe8+ {[%emt 0:00:55]} Nxe8 {[%emt 0:00:10]} 29. Qxd8 {[%emt 0:00:19]} Rxd8 {[%emt 0:00:07]} 30. Rf4 {[%emt 0:00:25]} Rb8 {[%emt 0:03:37]} 31. Nc4 {[%emt 0:00:22]} Rd8 {[%emt 0:01:34]} 32. Nb6 {[%emt 0:06:03]} Nc7 {[%emt 0:01:11]} 33. Rxb4 {[%emt 0:01:55]} Nxd5 {[%emt 0:00:09]} 34. Nxd5 {[%emt 0:00:20]} Rxd5 {[%emt 0:00:04]} 35. a4 {[%emt 0:00:33]} Kf8 {[%emt 0:00:44]} 36. Rb7 {[%emt 0:00:19]} Ke8 {[%emt 0:03:16]} 37. b4 {[%emt 0:00:19]} Rd2+ {[%emt 0:00:05]} 38. Kg3 {[%emt 0:00:05]} Ra2 {[%emt 0:00:09]} 39. a5 {[%emt 0:00:09]} Ra4 {[%emt 0:00:08]} 40. Rb6 {[%emt 0:01:45]} h5 {[%emt 0:02:26]} 41. a6 {[%emt 0:00:07]} Kd7 {[%emt 0:03:25]} 42. Rb7+ {[%emt 0:06:22]} Kc6 {[%emt 0:00:00]} 43. b5+ {[%emt 0:00:00]} Kd5 {[%emt 0:00:00]} 44. Rxf7 {[%emt 0:00:00]} Kc5 {[%emt 0:00:00]} 45. Rb7 {[%emt 0:00:00]} g5 {[%emt 0:00:00]} 46. a7 {[%emt 0:00:00]} Kc4 {[%emt 0:00:00]} 47. b6 {[%emt 0:00:00]} Ra3+ {[%emt 0:00:00]} 48. Kf2 {[%emt 0:00:00]} Kd4 {[%emt 0:00:00]} 49. Re7 {[%emt 0:00:00]} Kd5 1-0

[Event "WYCC U16 Girls 2019"]
[Site "Mumbai"]
[Date "2019.10.06"]
[Round "6.1"]
[White "Nurgali, Nazerke"]
[Black "Mahdian, Anousha"]
[Result "1/2-1/2"]
[ECO "D02"]
[WhiteElo "2194"]
[BlackElo "2103"]
[Annotator "ChessBase"]
[PlyCount "117"]
[EventDate "2019.10.02"]
[EventType "swiss"]
[EventCountry "IND"]
[SourceTitle "playchess.com"]
[Source "ChessBase"]
[SourceQuality "1"]
[TimeControl "5400+30"]

1. d4 {[%emt 0:00:00]} d5 {[%emt 0:01:27]} 2. Nf3 {[%emt 0:00:00]} e6 {[%emt 0:00:04]} 3. c4 {[%emt 0:00:00]} a6 {[%emt 0:00:02]} 4. e3 {[%emt 0:02:48]} Nf6 {[%emt 0:00:33]} 5. Nbd2 {[%emt 0:00:42]} dxc4 {[%emt 0:00:48]} 6. Bxc4 {[%emt 0:01:13]} c5 {[%emt 0:12:55]} 7. a4 {[%emt 0:01:09]} Nc6 {[%emt 0:00:30]} 8. Nb3 {[%emt 0:00:31]} cxd4 {[%emt 0:01:03]} 9. Nbxd4 {[%emt 0:00:52]} Nxd4 {[%emt 0:01:17]} 10. Nxd4 {[%emt 0:00:51]} Bb4+ {[%emt 0:15:58]} 11. Bd2 {[%emt 0:01:24]} Qa5 {[%emt 0:14:14]} 12. Nb3 {[%emt 0:03:01]} Bxd2+ {[%emt 0:00:05]} 13. Qxd2 {[%emt 0:00:16]} Qxd2+ {[%emt 0:01:17]} 14. Nxd2 {[%emt 0:00:05]} Bd7 {[%emt 0:01:03]} 15. O-O {[%emt 0:01:35]} O-O {[%emt 0:04:25]} 16. Nf3 {[%emt 0:01:42]} Bxa4 {[%emt 0:02:14]} 17. Rxa4 {[%emt 0:01:12]} b5 {[%emt 0:00:01]} 18. Bxb5 {[%emt 0:00:36]} axb5 {[%emt 0:00:02]} 19. Rb4 {[%emt 0:00:12]} Rfb8 {[%emt 0:03:22]} 20. Nd4 {[%emt 0:01:07]} Ra4 {[%emt 0:01:04]} 21. Rb3 {[%emt 0:07:40]} Rc4 {[%emt 0:06:23]} 22. Rxb5 {[%emt 0:11:39]} Rxb5 {[%emt 0:00:42]} 23. Nxb5 {[%emt 0:00:06]} Rb4 {[%emt 0:00:12]} 24. Rc1 {[%emt 0:00:31]} g6 {[%emt 0:00:21]} 25. Nd6 {[%emt 0:00:45]} Rxb2 {[%emt 0:00:12]} 26. h3 {[%emt 0:02:08]} Rd2 {[%emt 0:04:44]} 27. Nc4 {[%emt 0:01:58]} Rd5 {[%emt 0:00:14]} 28. Ra1 {[%emt 0:00:53]} Kg7 {[%emt 0:00:27]} 29. Ra7 {[%emt 0:02:08]} Rd1+ {[%emt 0:00:06]} 30. Kh2 {[%emt 0:00:05]} Rd7 {[%emt 0:00:02]} 31. Ra2 {[%emt 0:00:48]} Rd5 {[%emt 0:00:09]} 32. g3 {[%emt 0:05:18]} Rc5 {[%emt 0:01:49]} 33. Nd2 {[%emt 0:00:24]} Rd5 {[%emt 0:00:32]} 34. Kg2 {[%emt 0:00:13]} Nd7 {[%emt 0:01:45]} 35. Nc4 {[%emt 0:01:24]} Nf6 {[%emt 0:02:00]} 36. f4 {[%emt 0:04:07]} Rc5 {[%emt 0:05:25]} 37. Ne5 {[%emt 0:01:28]} Rc7 {[%emt 0:00:01]} 38. Kf3 h5 {[%emt 0:00:42]} 39. Ra3 {[%emt 0:06:23]} Nd5 {[%emt 0:01:12]} 40. Rb3 {[%emt 0:01:56]} Rc3 {[%emt 0:00:18]} 41. Rxc3 {[%emt 0:00:24]} Nxc3 {[%emt 0:00:03]} 42. Nd7 {[%emt 0:01:19]} Nd5 {[%emt 0:05:29]} 43. e4 {[%emt 0:00:46]} Nc3 {[%emt 0:00:28]} 44. g4 {[%emt 0:02:32]} hxg4+ {[%emt 0:00:06]} 45. hxg4 {[%emt 0:00:05]} f5 {[%emt 0:11:13]} 46. Nc5 {[%emt 0:07:44]} Kf7 {[%emt 0:01:00]} 47. e5 {[%emt 0:02:55]} Ke7 {[%emt 0:00:38]} 48. Nd3 {[%emt 0:05:14]} Ne4 {[%emt 0:01:14]} 49. gxf5 {[%emt 0:01:15]} gxf5 {[%emt 0:00:03]} 50. Ke3 {[%emt 0:00:07]} Ng3 {[%emt 0:02:12]} 51. Nc5 {[%emt 0:01:51]} Nh5 {[%emt 0:00:36]} 52. Kf3 {[%emt 0:00:26]} Ng7 {[%emt 0:00:47]} 53. Nd3 {[%emt 0:03:11]} Kf7 {[%emt 0:01:08]} 54. Ke3 {[%emt 0:03:04]} Ke7 {[%emt 0:00:06]} 55. Nc1 {[%emt 0:01:10]} Kd7 {[%emt 0:00:52]} 56. Kd4 {[%emt 0:00:47]} Nh5 {[%emt 0:01:19]} 57. Ne2 {[%emt 0:01:34]} Kc6 {[%emt 0:00:58]} 58. Kc4 {[%emt 0:00:47]} Kb6 {[%emt 0:00:31]} 59. Kb4 {[%emt 0:01:09]} 1/2-1/2

[Event "WYCC U16 Girls 2019"]
[Site "Mumbai"]
[Date "2019.10.06"]
[Round "6.2"]
[White "Loskutova, Viktoriya"]
[Black "Garifullina, Leya"]
[Result "0-1"]
[ECO "B52"]
[WhiteElo "2149"]
[BlackElo "2330"]
[Annotator "ChessBase"]
[PlyCount "116"]
[EventDate "2019.10.02"]
[EventType "swiss"]
[EventCountry "IND"]
[SourceTitle "playchess.com"]
[Source "ChessBase"]
[SourceQuality "1"]
[TimeControl "5400+30"]

1. e4 {[%emt 0:00:00]} c5 {[%emt 0:00:00]} 2. Nf3 {[%emt 0:00:00]} d6 {[%emt 0:00:05]} 3. Bb5+ {[%emt 0:00:00]} Bd7 {[%emt 0:00:07]} 4. c4 {[%emt 0:00:00]} Nf6 {[%emt 0:00:22]} 5. Nc3 {[%emt 0:00:01]} g6 {[%emt 0:00:17]} 6. d4 {[%emt 0:00:16]} cxd4 {[%emt 0:00:07]} 7. Nxd4 {[%emt 0:00:03]} Bg7 {[%emt 0:00:14]} 8. h3 {[%emt 0:00:21]} O-O {[%emt 0:02:11]} 9. O-O {[%emt 0:00:25]} Bxb5 {[%emt 0:01:03]} 10. cxb5 {[%emt 0:00:24]} Nbd7 {[%emt 0:03:01]} 11. Be3 {[%emt 0:01:48]} d5 {[%emt 0:03:56]} 12. exd5 {[%emt 0:06:29]} Nb6 {[%emt 0:01:28]} 13. Nde2 {[%emt 0:11:33]} Nbxd5 {[%emt 0:03:07]} 14. Bd4 {[%emt 0:02:40]} e6 {[%emt 0:07:15]} 15. Qb3 {[%emt 0:06:02]} Nxc3 {[%emt 0:04:39]} 16. bxc3 {[%emt 0:01:00]} Nd7 {[%emt 0:01:24]} 17. Bxg7 {[%emt 0:05:08]} Kxg7 {[%emt 0:00:04]} 18. Rfd1 {[%emt 0:01:58]} Qe7 {[%emt 0:02:40]} 19. c4 {[%emt 0:13:22]} Rfc8 {[%emt 0:02:06]} 20. Rac1 {[%emt 0:04:42]} Rc7 {[%emt 0:01:26]} 21. Qc3+ {[%emt 0:06:01]} Qf6 {[%emt 0:05:39]} 22. Qe3 {[%emt 0:01:20]} b6 {[%emt 0:07:30]} 23. Ng3 {[%emt 0:07:58]} Qe5 {[%emt 0:05:36]} 24. Ne4 {[%emt 0:03:13]} Nf6 {[%emt 0:10:14]} 25. Nxf6 {[%emt 0:03:19]} Qxe3 {[%emt 0:01:52]} 26. fxe3 {[%emt 0:01:55]} Kxf6 {[%emt 0:00:08]} 27. Rc3 {[%emt 0:01:07]} Ke5 {[%emt 0:01:45]} 28. Kf2 {[%emt 0:05:24]} Rac8 {[%emt 0:02:09]} 29. Rd4 {[%emt 0:04:39]} h5 {[%emt 0:03:49]} 30. Ra3 {[%emt 0:02:18]} g5 {[%emt 0:04:34]} 31. Ra6 {[%emt 0:03:54]} f5 {[%emt 0:02:09]} 32. a4 {[%emt 0:00:42]} g4 {[%emt 0:01:20]} 33. hxg4 {[%emt 0:01:16]} hxg4 {[%emt 0:00:06]} 34. a5 {[%emt 0:01:10]} Rxc4 {[%emt 0:00:14]} 35. Rxc4 {[%emt 0:01:43]} Rxc4 {[%emt 0:00:08]} 36. axb6 {[%emt 0:00:33]} axb6 {[%emt 0:00:04]} 37. Rxb6 {[%emt 0:00:04]} Rb4 {[%emt 0:00:34]} 38. Rb8 {[%emt 0:01:38]} Ke4 {[%emt 0:03:12]} 39. b6 {[%emt 0:00:47]} e5 {[%emt 0:01:20]} 40. b7 {[%emt 0:00:15]} Rb3 {[%emt 0:00:38]} 41. Kg3 {[%emt 0:00:00]} Rxe3+ {[%emt 0:00:00]} 42. Kh4 {[%emt 0:00:00]} Rb3 {[%emt 0:00:00]} 43. Kg5 {[%emt 0:00:00]} g3 {[%emt 0:00:00]} 44. Ra8 {[%emt 0:00:00]} Rxb7 {[%emt 0:00:00]} 45. Ra4+ {[%emt 0:00:00]} Ke3 {[%emt 0:00:00]} 46. Ra3+ {[%emt 0:00:00]} Kf2 {[%emt 0:00:00]} 47. Ra2+ {[%emt 0:00:00]} Kg1 {[%emt 0:00:00]} 48. Kxf5 {[%emt 0:00:00]} Rf7+ {[%emt 0:00:00]} 49. Kg4 {[%emt 0:00:00]} Kh2 {[%emt 0:00:00]} 50. Re2 {[%emt 0:00:00]} Rf4+ {[%emt 0:00:00]} 51. Kh5 {[%emt 0:00:00]} Kg1 {[%emt 0:00:00]} 52. Kg5 {[%emt 0:00:00]} Kf1 {[%emt 0:00:00]} 53. Ra2 {[%emt 0:00:00]} Rf2 {[%emt 0:00:00]} 54. Ra5 {[%emt 0:00:00]} Re2 {[%emt 0:00:00]} 55. Kg4 {[%emt 0:00:00]} Kxg2 {[%emt 0:00:00]} 56. Ra3 {[%emt 0:00:00]} Re4+ {[%emt 0:00:00]} 57. Kf5 {[%emt 0:00:00]} Rb4 {[%emt 0:00:00]} 58. Kxe5 {[%emt 0:00:00]} Kh2 {[%emt 0:00:00] Kd4} 0-1

[Event "WYCC U16 Girls 2019"]
[Site "Mumbai"]
[Date "2019.10.06"]
[Round "6.3"]
[White "Bommini Mounika Akshaya"]
[Black "Ciolacu, Alessia-Mihaela"]
[Result "1/2-1/2"]
[ECO "D35"]
[WhiteElo "2017"]
[BlackElo "2095"]
[Annotator "NA"]
[PlyCount "103"]
[EventDate "2019.10.02"]
[EventType "swiss"]
[EventCountry "IND"]
[SourceTitle "playchess.com"]
[Source "ChessBase"]
[SourceQuality "1"]
[TimeControl "5400+30"]

1. d4 {[%emt 0:00:00]} Nf6 {[%emt 0:00:00]} 2. c4 {[%emt 0:00:00]} e6 {[%emt 0:01:10]} 3. Nc3 {[%emt 0:00:00]} d5 {[%emt 0:00:35]} 4. cxd5 {[%emt 0:00:33]} exd5 {[%emt 0:00:05]} 5. Bg5 {[%emt 0:00:25]} c6 {[%emt 0:00:46]} 6. e3 {[%emt 0:00:35]} h6 {[%emt 0:00:37]} 7. Bh4 {[%emt 0:00:26]} Bd6 {[%emt 0:01:01] D35: Queen's Gambit Declined: Exchange Variation} (7... Bf5 8. Qf3 Bh7 9. Bxf6 Qxf6 10. Qxf6 gxf6 11. Nge2 Nd7 12. Ng3 Nb6 13. O-O-O Bb4 14. Bd3 O-O 15. Nce2 Nc8 {½-½ (128) Yu,Y (2736)-Ganguly,S (2638) Changsha 2019}) 8. Bd3 {[%emt 0:00:44]} Be6 {[%emt 0:00:42]} 9. Nf3 {[%emt 0:07:12]} Nbd7 {[%emt 0:00:41]} 10. O-O {[%emt 0:02:24]} O-O {[%emt 0:03:29]} 11. Rc1 {[%emt 0:06:56]} Qb8 $146 {[%emt 0:08:16]} ({Predecessor:} 11... Re8 12. Qc2 Rc8 13. a3 Qc7 14. Bg3 Bxg3 15. hxg3 {0-1 (34) Raijmaekers,C (2267)-Pessoa,F (2547) ICCF email 2012}) 12. Bg3 {[%emt 0:03:17]} Bxg3 {[%emt 0:10:28]} 13. hxg3 {[%emt 0:04:02]} Qd6 {[%emt 0:18:11]} 14. Nh4 {[%emt 0:01:27]} Rfe8 {[%emt 0:00:27]} 15. Bb1 {[%emt 0:08:54]} a5 {[%emt 0:08:10]} 16. Qc2 {[%emt 0:11:55]} Nb6 {[%emt 0:03:54]} 17. Rfe1 {[%emt 0:13:06]} Bd7 {[%emt 0:09:04]} 18. Nf5 {[%emt 0:10:22]} Qb4 {[%emt 0:09:24]} 19. Qe2 {[%emt 0:06:14]} Nc4 {[%emt 0:03:21]} 20. b3 {[%emt 0:06:08]} Nb6 $15 {[%emt 0:11:27]} 21. Qf3 {[%emt 0:03:36]} Bxf5 {[%emt 0:00:51]} 22. Qxf5 {[%emt 0:00:26]} Re6 {[%emt 0:01:35]} 23. g4 {[%emt 0:02:12]} Rae8 {[%emt 0:01:36]} 24. Ne2 {[%emt 0:06:24]} Ne4 {[%emt 0:01:16]} 25. Bxe4 {[%emt 0:00:17]} Rxe4 {[%emt 0:00:37]} 26. Nf4 {[%emt 0:02:07]} Qd6 {[%emt 0:00:53]} 27. Nd3 {[%emt 0:00:38]} Nd7 {[%emt 0:01:01]} 28. Qf3 {[%emt 0:02:40]} Qe7 {[%emt 0:03:13]} 29. Qd1 {[%emt 0:00:43]} Qh4 {[%emt 0:00:41]} 30. Nf4 {[%emt 0:00:22]} Nf6 {[%emt 0:00:41]} 31. g3 {[%emt 0:00:47]} Qxg4 {[%emt 0:00:37]} 32. Qxg4 {[%emt 0:00:19]} Nxg4 {[%emt 0:00:01]} 33. Rc5 {[%emt 0:00:40]} Rxd4 {[%emt 0:00:43]} 34. Rxa5 {[%emt 0:00:25]} Rd2 {[%emt 0:00:14]} 35. Re2 {[%emt 0:00:31]} Rd1+ {[%emt 0:01:00]} 36. Kg2 {[%emt 0:00:06]} g5 {[%emt 0:00:10]} 37. Nh5 {[%emt 0:00:45]} Kh7 {[%emt 0:00:48]} 38. Ra4 {[%emt 0:00:40]} Kg6 {[%emt 0:00:42]} 39. Rxg4 {[%emt 0:00:31]} Kxh5 {[%emt 0:00:04]} 40. Rb4 {[%emt 0:00:13]} Re7 {[%emt 0:00:54]} 41. Rc2 {[%emt 0:00:00]} g4 {[%emt 0:00:00]} 42. a4 {[%emt 0:00:00]} f5 {[%emt 0:00:00]} 43. Rc5 {[%emt 0:00:00]} Ra1 {[%emt 0:00:00]} 44. Ra5 {[%emt 0:00:00]} Rb1 {[%emt 0:00:00]} 45. Ra8 {[%emt 0:00:00]} c5 {[%emt 0:00:00]} 46. Rb6 {[%emt 0:00:00]} Rg7 {[%emt 0:00:05]} 47. Rf8 {[%emt 0:00:00]} Kg5 {[%emt 0:00:34]} 48. Rbf6 {[%emt 0:00:00]} Rxb3 {[%emt 0:00:29]} 49. Rxf5+ {[%emt 0:00:09]} Kg6 {[%emt 0:00:05]} 50. R8f6+ {[%emt 0:00:25]} Kh7 {[%emt 0:00:07]} 51. Rxd5 {[%emt 0:00:08]} Rc7 {[%emt 0:00:46]} 52. Rdd6 {[%emt 0:00:38]} 1/2-1/2

[Event "WYCC U16 Girls 2019"]
[Site "Mumbai"]
[Date "2019.10.06"]
[Round "6.4"]
[White "Mehendi Sil"]
[Black "Salonika, Saina"]
[Result "1/2-1/2"]
[ECO "A45"]
[WhiteElo "1812"]
[BlackElo "2051"]
[Annotator "NA"]
[PlyCount "68"]
[EventDate "2019.10.02"]
[EventType "swiss"]
[EventCountry "IND"]
[SourceTitle "playchess.com"]
[Source "ChessBase"]
[SourceQuality "1"]
[TimeControl "5400+30"]

1. d4 {[%emt 0:00:00]} Nf6 {[%emt 0:00:00]} 2. Bf4 {[%emt 0:00:00]} g6 {[%emt 0:00:00]} 3. Nc3 {[%emt 0:00:04]} d5 {[%emt 0:00:00]} 4. e3 {[%emt 0:00:33]} Bg7 {[%emt 0:00:00]} 5. h4 {[%emt 0:00:33]} h5 {[%emt 0:00:00]} (5... c6 6. Be2 Qb6 7. Rb1 h5 8. Nf3 Bg4 9. Ne5 Bxe2 10. Qxe2 Nbd7 11. Qf3 Qa6 {0-1 (32) Karjakin,S (2750)-Yu,Y (2752) Saint Louis 2019}) 6. Nb5 {[%emt 0:00:25] A45: Trompowsky Attack} Na6 {[%emt 0:00:10]} 7. Nf3 {[%emt 0:00:14]} c6 {[%emt 0:01:00]} 8. Nc3 {[%emt 0:00:14]} Nb8 {[%emt 0:00:04]} 9. Be2 {[%emt 0:02:23]} O-O {[%emt 0:00:08]} 10. Bxb8 $146 {[%emt 0:06:39]} ({Predecessor:} 10. Ne5 Nbd7 11. Qd2 Nxe5 12. Bxe5 Ng4 13. Bxg7 Kxg7 14. f3 Nf6 15. O-O-O Qd6 16. Kb1 e5 17. dxe5 Qxe5 {0-1 (35) Ravi,T (2410)-Ziska,H (2533) Riga 2019}) 10... Rxb8 {[%emt 0:00:09]} 11. Ne5 {[%emt 0:00:24]} Nd7 {[%emt 0:05:36]} 12. g4 {[%emt 0:17:31]} Nxe5 {[%emt 0:04:57]} 13. dxe5 {[%emt 0:00:46]} hxg4 {[%emt 0:01:20]} 14. Bxg4 {[%emt 0:07:31]} Bxe5 {[%emt 0:00:45]} 15. Bxc8 {[%emt 0:07:19]} Qxc8 {[%emt 0:08:13]} 16. Qe2 {[%emt 0:06:18]} Kg7 {[%emt 0:07:28]} 17. h5 {[%emt 0:06:28]} Rh8 {[%emt 0:00:28]} 18. O-O-O {[%emt 0:03:38]} Qf5 {[%emt 0:00:21]} 19. Rdg1 {[%emt 0:06:53]} Rh6 {[%emt 0:02:47]} 20. f4 {[%emt 0:04:04]} Bf6 {[%emt 0:00:45]} 21. hxg6 {[%emt 0:03:47]} Rxh1 {[%emt 0:00:16]} 22. Rxh1 {[%emt 0:00:43]} fxg6 {[%emt 0:00:06]} 23. Qh2 {[%emt 0:01:05]} Kf7 {[%emt 0:00:20]} 24. Qg2 {[%emt 0:09:38]} Re8 $17 {[%emt 0:12:13]} 25. Ne2 {[%emt 0:04:06]} e5 {[%emt 0:00:32]} 26. Rh7+ {[%emt 0:03:14]} Bg7 {[%emt 0:00:20]} 27. Rh4 {[%emt 0:02:08]} e4 {[%emt 0:08:50]} 28. c3 {[%emt 0:00:48]} c5 {[%emt 0:01:27]} 29. Ng3 {[%emt 0:00:52]} Qf6 {[%emt 0:03:16]} 30. Rg4 {[%emt 0:00:25]} Rh8 {[%emt 0:07:15]} 31. Rg5 {[%emt 0:00:32]} Rd8 {[%emt 0:00:38]} 32. Rg4 {[%emt 0:00:23]} Rh8 {[%emt 0:19:49]} 33. Rg5 {[%emt 0:00:25]} Rd8 {[%emt 0:00:05]} 34. Rg4 {[%emt 0:00:07]} Rh8 {[%emt 0:08:18]} 1/2-1/2